bitfinex-derivatives/quotes_SOLF0:USTF0_20241029
["timestamp","ask_amount","ask_price","bid_price","bid_amount"]
[1730225732206,2.7635,180.94,180.9,2.7639]
[1730225732398,8.47273353,180.93,180.9,2.7639]
[1730225732808,8.47273353,180.92,180.88,2.7643]
[1730225733003,8.47273353,180.92,180.87,8.47273353]
[1730225733710,8.47273353,180.92,180.89,2.7641]
[1730225734195,8.47273353,180.91,180.85,1.2085]
[1730225734403,8.47273353,180.89,180.85,1.2085]
[1730225734804,8.47273353,180.89,180.84,11.23763353]
[1730225735007,8.47273353,180.91,180.86,8.47273353]
[1730225735311,8.47273353,180.9,180.86,8.47273353]
[1730225735507,8.47273353,180.88,180.79,2.5181]
[1730225735702,4.42,180.93,180.8,4.42]
[1730225735703,8.47273353,180.87,180.8,4.42]
[1730225735905,8.47273353,180.84,180.8,8.47273353]
[1730225736098,2.4495,180.92,180.81,8.47273353]
[1730225736309,8.47273353,180.86,180.81,8.47273353]
[1730225737305,8.47273353,180.84,180.79,9.70613353]
[1730225737704,7.18296093,180.87,180.78,2.7658]
[1730225737705,8.47273353,180.82,180.78,2.7658]
[1730225738008,8.47273353,180.81,180.76,8.47273353]
[1730225738205,8.47273353,180.81,180.76,2.7661]
[1730225738412,2.7654,180.82,180.73,13.28755582]
[1730225738810,2.7655,180.81,180.76,2.7661]
[1730225739008,13.28755582,180.81,180.71,13.28755582]
[1730225739514,13.28755582,180.81,180.74,2.7664]
[1730225740111,2.7659,180.78,180.73,2.7665]
[1730225740304,13.28755582,180.76,180.66,3.9816]
[1730225740501,4.42,180.75,180.68,2.7673]
[1730225740706,7.25129162,180.75,180.66,17.26915582]
[1730225741003,4.42,180.74,180.66,17.26915582]
[1730225741206,2.83129162,180.75,180.66,17.26915582]
[1730225741514,4.42,180.76,180.68,13.28755582]
[1730225741814,13.28755582,180.8,180.71,13.28755582]
[1730225742010,4.42,180.79,180.71,13.28755582]
[1730225742315,2.601,180.82,180.73,13.28755582]
[1730225742514,4.42,180.81,180.73,13.28755582]
[1730225743616,7.1854,180.81,180.76,2.7661]
[1730225744111,7.1854,180.81,180.77,2.766]
[1730225744315,4.42,180.81,180.77,2.766]
[1730225745014,5.3663,180.82,180.73,13.28755582]
[1730225745211,4.42,180.81,180.73,13.28755582]
[1730225745613,2.601,180.82,180.73,13.28755582]
[1730225745824,4.42,180.82,180.76,13.28755582]
[1730225746316,4.42,180.82,180.8,2.7655]
[1730225746510,4.42,180.82,180.76,13.28755582]
[1730225747108,4.42,180.82,180.81,2.7654]
[1730225747309,4.42,180.82,180.7,4.42]
[1730225747507,4.42,180.82,180.73,13.28755582]
[1730225748014,4.42,180.82,180.71,13.28755582]
[1730225748211,2.7658,180.79,180.75,2.7663]
[1730225748421,13.28755582,180.81,180.69,13.28755582]
[1730225748422,4.42,180.78,180.69,13.28755582]
[1730225748609,2.78669661,180.77,180.69,13.28755582]
[1730225748813,5.55269661,180.77,180.67,13.28755582]
[1730225749310,5.55269661,180.77,180.73,2.7666]
[1730225749816,5.55279661,180.77,180.72,2.7667]
[1730225750117,13.28755582,180.76,180.67,13.28755582]
[1730225750321,13.28755582,180.76,180.66,3.9816]
[1730225750525,2.7665,180.74,180.66,2.6705]
[1730225750712,4.42,180.73,180.66,2.6705]
[1730225751220,4.42,180.73,180.66,1.3396]
[1730225751813,2.78669661,180.77,180.66,1.3396]
[1730225752019,19.3398,180.99,180.66,1.3396]
[1730225752020,17.70755582,180.76,180.66,14.62715582]
[1730225752217,4.42,180.75,180.66,14.62715582]
[1730225752420,4.42,180.75,180.71,2.7668]
[1730225753020,16.08040593,180.76,180.66,14.62715582]
[1730225753214,4.42,180.76,180.68,13.28755582]
[1730225754308,4.42,180.76,180.72,2.7667]
[1730225754512,2.76296093,180.87,180.7,13.28755582]
[1730225754715,4.42,180.78,180.75,2.7662]
[1730225755111,4.42,180.78,180.7,13.28755582]
[1730225755314,4.42,180.78,180.77,2.766]
[1730225755919,4.42,180.78,180.75,2.7663]
[1730225756116,4.42,180.78,180.72,13.28755582]
[1730225756524,4.42,180.78,180.77,2.766]
[1730225757121,4.42,180.78,180.76,2.7661]
[1730225757317,4.42,180.78,180.7,14.50485582]
[1730225757521,4.42,180.78,180.7,13.28755582]
[1730225757721,5.51659645,180.77,180.73,2.7665]
[1730225757931,4.42,180.76,180.67,13.28755582]
[1730225758127,7.1863,180.76,180.71,2.7669]
[1730225758419,9.96835408,180.76,180.71,2.7669]
[1730225758621,9.96835408,180.76,180.67,13.28755582]
[1730225759622,9.96835408,180.76,180.72,2.7667]
[1730225759821,7.20205408,180.76,180.67,13.28755582]
[1730225760218,13.28755582,180.79,180.69,13.28755582]
[1730225760422,4.42,180.78,180.72,13.28755582]
[1730225760822,4.42,180.78,180.73,2.7666]
[1730225761524,7.186,180.78,180.73,2.7666]
[1730225761725,2.766,180.78,180.73,2.7666]
[1730225761928,7.186,180.78,180.73,2.7666]
[1730225762326,4.42,180.78,180.72,13.28755582]
[1730225763022,7.1859,180.78,180.74,2.7664]
[1730225764028,2.7659,180.78,180.74,2.7664]
[1730225764225,7.1859,180.78,180.74,2.7664]
[1730225765433,16.04688273,180.77,180.67,13.28755582]
[1730225765635,13.28755582,180.77,180.67,13.28755582]
[1730225765930,15.9887625,180.77,180.67,13.28755582]
[1730225766318,15.9887625,180.77,180.69,2.7672]
[1730225766927,15.9887625,180.77,180.66,1.3396]
[1730225767135,13.28755582,180.75,180.68,2.7674]
[1730225767329,2.7672,180.7,180.66,1.3396]
[1730225767532,2.7672,180.7,180.63,14.50485582]
[1730225767533,2.80942101,180.72,180.63,14.50485582]
[1730225767730,4.42,180.74,180.63,14.50485582]
[1730225768234,7.12286726,180.74,180.63,14.50485582]
[1730225769436,2.767,180.71,180.67,2.7676]
[1730225769624,7.12286726,180.74,180.65,13.28755582]
[1730225769937,2.7668,180.73,180.65,13.28755582]
[1730225770135,7.12286726,180.74,180.65,13.28755582]
[1730225770534,2.7671,180.71,180.67,2.7674]
[1730225771240,7.12286726,180.74,180.65,13.28755582]
[1730225772140,7.12286726,180.74,180.63,1.2173]
[1730225772335,7.12286726,180.74,180.64,13.28755582]
[1730225772834,13.28755582,180.73,180.55,5.5386]
[1730225773142,13.28755582,180.73,180.64,2.768]
[1730225773143,2.7674,180.68,180.64,2.768]
[1730225773435,4.42,180.69,180.58,17.04755582]
[1730225773642,2.7677,180.66,180.62,2.7682]
[1730225773841,4.42,180.68,180.6,13.28755582]
[1730225774234,2.7677,180.67,180.63,2.7681]
[1730225774434,4.42,180.68,180.63,2.7681]
[1730225774737,2.7676,180.67,180.64,2.768]
[1730225774937,2.7676,180.67,180.6,13.28755582]
[1730225775635,2.7676,180.67,180.58,3.76]
[1730225775841,4.42,180.71,180.64,13.28755582]
[1730225776341,7.187,180.71,180.64,13.28755582]
[1730225776739,4.42,180.71,180.64,13.28755582]
[1730225776939,2.7671,180.7,180.66,2.7677]
[1730225778541,7.1871,180.71,180.66,2.7677]
[1730225778734,2.5598,180.73,180.66,2.7677]
[1730225778945,4.42,180.71,180.64,13.28755582]
[1730225779342,4.42,180.71,180.66,13.28755582]
[1730225779542,59.8,180.8,180.66,13.28755582]
[1730225779543,4.42,180.73,180.66,13.28755582]
[1730225779751,4.42,180.73,180.69,13.28755582]
[1730225780551,4.42,180.73,180.71,2.7668]
[1730225781350,1.2551,180.78,180.73,2.7666]
[1730225781545,1.2551,180.78,180.71,13.28755582]
[1730225781744,4.42,180.82,180.73,13.28755582]
[1730225783043,2.7655,180.81,180.76,2.7661]
[1730225783244,13.28755582,180.83,180.73,13.28755582]
[1730225783444,2.6629,180.84,180.76,13.28755582]
[1730225783445,1.3278,180.84,180.76,13.28755582]
[1730225783643,5.7478,180.84,180.76,13.28755582]
[1730225783843,5.7478,180.84,180.79,2.7657]
[1730225783844,2.7652,180.83,180.79,2.7657]
[1730225784243,2.7652,180.83,180.76,13.28755582]
[1730225784445,1.3117,180.86,180.76,17.70755582]
[1730225784653,5.7317,180.86,180.76,17.70755582]
[1730225784854,2.765,180.84,180.8,2.7655]
[1730225785047,5.7317,180.86,180.76,17.70755582]
[1730225785352,4.42,180.88,180.79,13.28755582]
[1730225785551,1.2241,180.89,180.81,13.28755582]
[1730225785745,5.6441,180.89,180.81,13.28755582]
[1730225786044,4.42,180.89,180.81,13.28755582]
[1730225786438,13.28755582,180.9,180.81,13.28755582]
[1730225786641,2.7645,180.88,180.84,2.7649]
[1730225786848,2.7645,180.88,180.81,13.28755582]
[1730225787354,4.42,180.9,180.81,13.28755582]
[1730225787552,4.42,180.9,180.82,1.2263]
[1730225787757,4.42,180.9,180.86,2.7646]
[1730225787950,2.7641,180.9,180.86,2.7646]
[1730225788148,1.2668,180.93,180.83,13.28755582]
[1730225788352,2.7639,180.91,180.87,2.7645]
[1730225788549,4.42,180.92,180.85,13.28755582]
[1730225788957,2.764,180.91,180.87,2.7645]
[1730225789557,4.42,180.92,180.85,13.28755582]
[1730225789751,2.7637,180.93,180.85,13.28755582]
[1730225790363,2.7637,180.93,180.88,2.7642]
[1730225791053,2.7637,180.93,180.89,2.7642]
[1730225791562,2.7634,180.95,180.87,13.28755582]
[1730225791966,2.7634,180.95,180.91,2.7639]
[1730225792259,4.42,180.97,180.87,13.28755582]
[1730225792668,4.42,180.97,180.91,2.7638]
[1730225792965,2.7633,180.95,180.89,13.28755582]
[1730225793868,13.28755582,180.96,180.85,13.28755582]
[1730225794063,13.28755582,180.96,180.85,17.70755582]
[1730225794455,2.7637,180.93,180.88,2.7642]
[1730225794859,13.28755582,180.96,180.88,2.7642]
[1730225795261,13.28755582,180.96,180.87,2.7645]
[1730225795460,13.28755582,180.93,180.84,4.42]
[1730225795767,2.7642,180.9,180.84,4.42]
[1730225795968,17.70755582,180.93,180.87,2.7645]
[1730225796372,2.764,180.91,180.87,2.7645]
[1730225796558,4.42,180.93,180.85,13.28755582]
[1730225797364,2.7639,180.92,180.88,2.7643]
[1730225797669,4.42,180.93,180.85,13.28755582]
[1730225798270,2.7639,180.91,180.87,2.7644]
[1730225798770,4.42,180.93,180.87,2.7644]
[1730225799064,2.7638,180.92,180.87,2.7644]
[1730225799672,2.764,180.91,180.87,2.7644]
[1730225799863,4.42,180.93,180.82,2.4982]
[1730225799864,4.42,180.93,180.83,13.28755582]
[1730225800066,13.28755582,180.91,180.82,2.4982]
[1730225800266,13.28755582,180.91,180.82,1.2263]
[1730225800466,2.7645,180.87,180.83,2.765]
[1730225800870,2.7645,180.87,180.82,1.2263]
[1730225800871,13.28755582,180.91,180.82,1.2263]
[1730225801070,2.7643,180.89,180.82,1.2263]
[1730225801981,2.7641,180.9,180.82,1.2263]
[1730225802478,2.7641,180.9,180.86,2.7646]
[1730225803878,2.7644,180.88,180.85,2.7648]
[1730225804568,13.28755582,180.91,180.82,14.51385582]
[1730225804768,2.7645,180.88,180.84,2.7649]
[1730225804968,2.7645,180.88,180.82,14.51385582]
[1730225805466,2.7642,180.89,180.82,14.51385582]
[1730225805978,1.2814,180.92,180.84,13.28755582]
[1730225806179,2.7639,180.91,180.84,13.28755582]
[1730225806671,2.7639,180.91,180.88,2.7643]
[1730225807377,4.0452,180.92,180.89,2.7642]
[1730225809484,2.7638,180.92,180.89,2.7642]
[1730225810783,4.42,180.93,180.84,13.28755582]
[1730225811081,1.2554,180.96,180.87,13.28755582]
[1730225811276,5.6554,180.96,180.89,13.28755582]
[1730225811474,1.2554,180.96,180.89,13.28755582]
[1730225811874,5.6345,180.97,180.89,13.28755582]
[1730225812976,5.6345,180.97,180.87,13.28755582]
[1730225813180,5.6345,180.97,180.91,2.7639]
[1730225813181,2.7636,180.94,180.91,2.7639]
[1730225815573,2.7636,180.94,180.86,1.2994]
[1730225815574,4.4,180.96,180.86,14.58695582]
[1730225815878,17.68755582,180.96,180.86,13.28755582]
[1730225816086,2.764,180.91,180.88,2.7643]
[1730225816976,2.764,180.91,180.84,4.4]
[1730225816977,2.7641,180.9,180.84,17.68755582]
[1730225817582,2.7641,180.9,180.87,2.7645]
[1730225819982,13.28755582,180.94,180.84,4.4]
[1730225820183,4.4,180.96,180.89,2.7642]
[1730225820682,2.7638,180.92,180.89,2.7642]
[1730225821081,4.4,180.96,180.84,4.4]
[1730225821082,4.4,180.96,180.88,13.28755582]
[1730225821281,2.7633,180.95,180.88,13.28755582]
[1730225821588,4.4,180.98,180.94,2.7634]
[1730225821775,2.763,180.97,180.94,2.7634]
[1730225822181,139.48506093,181.0,180.92,2.7636]
[1730225822377,2.7628,180.98,180.93,13.28755582]
[1730225822888,2.7628,180.99,180.96,2.7631]
[1730225823577,139.48506093,181.0,180.93,13.28755582]
[1730225823781,2.7629,180.98,180.93,13.28755582]
[1730225823984,139.48506093,181.0,180.93,13.28755582]
[1730225824184,4.4,181.02,180.95,13.28755582]
[1730225824488,2.4993,181.03,180.95,13.28755582]
[1730225824682,6.8993,181.03,180.95,13.28755582]
[1730225824887,2.7625,181.01,180.97,2.7629]
[1730225825085,6.8993,181.03,180.97,2.7629]
[1730225825290,6.8993,181.03,180.91,4.4]
[1730225825480,2.7629,180.98,180.95,2.7632]
[1730225825684,13.28755582,181.01,180.92,13.28755582]
[1730225826588,2.7628,180.99,180.94,2.7633]
[1730225826794,13.28755582,181.01,180.94,2.7633]
[1730225827590,2.763,180.97,180.94,2.7633]
[1730225831398,13.28755582,181.01,180.92,13.28755582]
[1730225831694,2.763,180.97,180.92,13.28755582]
[1730225831899,4.4,180.99,180.95,2.7632]
[1730225832096,2.7629,180.98,180.92,13.28755582]
[1730225832797,2.763,180.97,180.94,2.7634]
[1730225833888,2.763,180.97,180.93,2.7635]
[1730225836484,2.7629,180.98,180.94,2.7633]
[1730225838591,2.7629,180.98,180.94,11.2598549]
[1730225838789,2.7626,181.0,180.97,11.2594549]
[1730225838988,2.7626,181.0,180.96,8.4965549]
[1730225838989,8.4965549,181.0,180.96,8.4965549]
[1730225839301,2.763,180.97,180.94,11.2598549]
[1730225840602,8.4965549,180.97,180.89,2.4573]
[1730225840898,2.7634,180.95,180.91,11.2602549]
[1730225842498,2.7634,180.95,180.93,8.4965549]
[1730225844397,2.7637,180.93,180.9,2.764]
[1730225844599,2.7637,180.93,180.89,8.4965549]
[1730225845203,2.7637,180.93,180.9,2.7639]
[1730225845390,8.4965549,180.94,180.89,8.4965549]
[1730225845591,11.23586806,180.94,180.89,8.4965549]
[1730225845797,8.4965549,180.92,180.87,11.2609549]
[1730225846001,8.4965549,180.92,180.87,8.4965549]
[1730225846198,2.764,180.91,180.88,2.7642]
[1730225846407,2.764,180.91,180.87,8.4965549]
[1730225846601,15.63586806,180.94,180.89,8.4965549]
[1730225846792,2.7638,180.92,180.89,11.2606549]
[1730225847101,4.4,180.96,180.91,8.4965549]
[1730225847300,2.7634,180.95,180.91,8.4965549]
[1730225848104,4.4,180.96,180.93,8.4965549]
[1730225848603,4.4,180.96,180.94,2.7633]
[1730225848904,7.1632,180.96,180.93,8.4965549]
[1730225849601,4.4,180.96,180.95,8.4965549]
[1730225849799,2.763,180.97,180.95,8.4965549]
[1730225850000,4.4,180.99,180.96,11.2596549]
[1730225850196,2.7628,180.98,180.96,11.2596549]
[1730225850399,2.7628,180.98,180.96,2.7631]
[1730225850803,2.7626,181.0,180.97,2.7628]
[1730225851607,9.11727684,181.03,181.0,2.7624]
[1730225851803,7.22763769,181.04,181.0,2.7624]
[1730225852503,9.11727684,181.05,180.96,13.27302387]
[1730225852504,11.87917684,181.05,181.01,2.7623]
[1730225852800,11.87917684,181.05,180.98,13.27302387]
[1730225852996,9.11727684,181.05,181.03,2.762]
[1730225853204,13.27302387,181.11,181.0,13.27302387]
[1730225853397,4.4,181.1,181.0,13.27302387]
[1730225853704,2.7616,181.07,181.03,2.762]
[1730225854208,2.7616,181.07,181.03,13.27302387]
[1730225854499,9.1482879,181.12,181.05,2.7617]
[1730225854700,13.5482879,181.12,181.05,13.27302387]
[1730225855009,2.7609,181.11,181.07,2.7613]
[1730225857107,15.80322387,181.13,181.01,1.2738]
[1730225857312,15.80322387,181.13,181.02,13.27302387]
[1730225857511,24.95151177,181.13,181.02,13.27302387]
[1730225858111,2.7614,181.08,181.04,2.7619]
[1730225860407,4.4,181.1,181.02,13.27302387]
[1730225860609,4.4,181.1,181.03,2.7621]
[1730225861311,2.7613,181.08,181.03,2.7621]
[1730225861617,2.7613,181.08,181.02,13.27302387]
[1730225862210,4.4,181.1,181.01,1.2738]
[1730225862405,13.27302387,181.09,180.97,15.76462387]
[1730225862605,13.27302387,181.07,180.97,15.76462387]
[1730225862813,4.4,181.06,180.97,15.76462387]
[1730225863008,2.7622,181.03,180.97,15.76462387]
[1730225863208,4.4,181.06,180.97,2.4916]
[1730225863418,4.4,181.06,181.0,13.27302387]
[1730225863609,4.4,181.06,180.97,2.4916]
[1730225863907,4.4,181.06,181.0,13.27302387]
[1730225864814,2.762,181.04,181.0,16.03552387]
[1730225867008,4.4,181.06,181.0,13.27302387]
[1730225867316,7.1617,181.06,181.02,2.7622]
[1730225867615,2.7617,181.06,181.02,2.7622]
[1730225868617,4.4,181.08,181.02,2.7622]
[1730225868815,4.4,181.08,181.0,13.27302387]
[1730225868816,7.18453579,181.08,181.0,13.27302387]
[1730225869118,7.18453579,181.08,181.01,2.7623]
[1730225869309,2.762,181.04,181.01,2.7623]
[1730225869614,4.4,181.08,181.0,13.27302387]
[1730225869820,2.7615,181.07,181.0,13.27302387]
[1730225870317,2.7615,181.07,181.01,13.27302387]
[1730225870704,2.7615,181.07,181.02,2.7621]
[1730225870916,2.7615,181.07,181.01,13.27302387]
[1730225871420,2.7613,181.08,181.04,2.7618]
[1730225871617,2.7613,181.08,181.01,17.67302387]
[1730225871811,2.7613,181.08,181.02,1.2133]
[1730225872010,2.7613,181.08,181.05,2.7617]
[1730225872314,4.4,181.1,181.04,13.27302387]
[1730225872315,2.7612,181.09,181.04,13.27302387]
[1730225873026,4.4,181.1,181.04,13.27302387]
[1730225873317,2.7613,181.08,181.04,13.27302387]
[1730225874209,2.7613,181.08,181.05,2.7617]
[1730225875121,2.7613,181.08,181.04,13.27302387]
[1730225875122,2.7612,181.09,181.06,2.7616]
[1730225875618,2.7612,181.09,181.04,13.27302387]
[1730225875813,4.4,181.12,181.04,13.27302387]
[1730225876014,17.67302387,181.12,181.02,14.48632387]
[1730225876421,2.7619,181.05,181.02,13.27302387]
[1730225877421,2.7619,181.05,181.0,13.27302387]
[1730225878222,2.7619,181.05,181.02,2.7621]
[1730225881522,7.1601544,181.08,181.02,2.7621]
[1730225881725,4.4,181.08,181.02,13.27302387]
[1730225882419,9.13045303,181.12,181.04,13.27302387]
[1730225882620,4.4,181.11,181.04,13.27302387]
[1730225884134,4.4,181.11,181.06,2.7616]
[1730225884335,4.4,181.11,181.02,13.27302387]
[1730225885231,2.7614,181.08,181.05,2.7616]
[1730225885431,4.4,181.11,181.02,13.27302387]
[1730225886339,2.7614,181.08,181.05,2.7617]
[1730225887036,4.4,181.11,181.05,2.7617]
[1730225887241,2.7615,181.07,181.05,2.7617]
[1730225888936,2.7614,181.08,181.05,2.7617]
[1730225889139,4.4,181.11,181.04,13.27302387]
[1730225889545,2.761,181.1,181.04,13.27302387]
[1730225889838,4.4,181.11,181.06,2.7615]
[1730225890041,4.4,181.11,181.0,13.27302387]
[1730225890042,2.7617,181.06,181.0,13.27302387]
[1730225890244,13.27302387,181.1,181.04,2.7618]
[1730225890542,4.4,181.11,181.04,2.7618]
[1730225890842,4.4,181.11,181.02,13.27302387]
[1730225890843,2.7612,181.09,181.06,2.7616]
[1730225891037,4.4,181.11,181.02,13.27302387]
[1730225891238,7.1608,181.12,181.08,2.7612]
[1730225891432,2.7608,181.12,181.07,13.27302387]
[1730225891741,4.4,181.14,181.07,13.27302387]
[1730225891941,2.7607,181.12,181.09,2.7611]
[1730225892244,4.4,181.14,181.07,13.27302387]
[1730225892442,7.1604,181.14,181.11,2.7608]
[1730225892835,2.7604,181.14,181.11,2.7608]
[1730225893345,2.7604,181.14,181.12,2.7607]
[1730225893635,2.7604,181.14,181.09,13.27302387]
[1730225893836,4.4,181.15,181.09,13.27302387]
[1730225894035,4.4,181.15,181.07,4.4]
[1730225894835,2.7607,181.12,181.09,2.7611]
[1730225895034,2.7607,181.12,181.07,4.4]
[1730225897350,2.7607,181.12,181.09,2.761]
[1730225899447,4.4,181.15,181.08,13.27302387]
[1730225899646,5.20797862,181.18,181.08,13.27302387]
[1730225900054,4.4,181.17,181.08,13.27302387]
[1730225900654,5.20797862,181.18,181.07,4.4]
[1730225900655,4.4,181.18,181.1,13.27302387]
[1730225900944,2.76,181.17,181.14,2.7604]
[1730225901152,139.34220751,181.19,181.13,13.27302387]
[1730225902259,2.7599,181.17,181.13,13.27302387]
[1730225902852,2.7603,181.15,181.12,2.7606]
[1730225903452,139.34220751,181.19,181.12,2.7606]
[1730225903655,2.7601,181.16,181.13,2.7605]
[1730225904952,2.76,181.17,181.11,16.03372387]
[1730225905155,139.34220751,181.19,181.11,13.27302387]
[1730225905552,2.7603,181.15,181.12,2.7606]
[1730225906152,2.7603,181.15,181.13,2.7605]
[1730225906660,2.7613,181.09,181.06,2.7615]
[1730225906854,13.27302387,181.15,181.03,13.27302387]
[1730225907056,1.222,181.14,181.03,13.27302387]
[1730225907360,2.7611,181.1,181.06,2.7615]
[1730225907550,4.4,181.13,181.06,2.7615]
[1730225907750,4.4,181.13,181.03,13.27302387]
[1730225907949,2.7609,181.11,181.07,2.7613]
[1730225908149,4.4,181.13,181.05,13.27302387]
[1730225908554,2.7607,181.12,181.08,2.7612]
[1730225912253,2.7607,181.12,181.09,2.7611]
[1730225912758,10.34953295,181.24,181.1,17.67302387]
[1730225912965,80.02867418,181.26,181.17,13.27302387]
[1730225912966,7.63075282,181.25,181.17,13.27302387]
[1730225913167,60.9454,181.26,181.17,13.27302387]
[1730225913168,7.1589,181.24,181.17,13.27302387]
[1730225913462,4.4,181.24,181.17,13.27302387]
[1730225914052,4.4,181.24,181.17,16.03282387]
[1730225914452,4.4,181.24,181.17,13.27302387]
[1730225914659,2.7592,181.22,181.17,16.03292387]
[1730225914859,4.4,181.24,181.17,16.03292387]
[1730225915260,2.7591,181.23,181.18,2.7598]
[1730225915753,4.4,181.24,181.19,13.27302387]
[1730225916662,2.7592,181.23,181.19,16.03262387]
[1730225916861,4.4,181.24,181.19,13.27302387]
[1730225917059,1.2337,181.27,181.21,13.27302387]
[1730225917263,2.77403628,181.28,181.14,4.4]
[1730225917464,4.4,181.28,181.2,13.27302387]
[1730225917662,7.21309188,181.28,181.2,13.27302387]
[1730225917960,2.7586,181.26,181.2,13.27302387]
[1730225918554,7.21309188,181.28,181.2,13.27302387]
[1730225918759,2.7587,181.25,181.21,2.7593]
[1730225920056,2.7589,181.24,181.2,13.27302387]
[1730225920365,7.21309188,181.28,181.2,13.27302387]
[1730225920561,7.21309188,181.28,181.18,13.27302387]
[1730225920766,2.759,181.24,181.19,2.7596]
[1730225920954,7.21309188,181.28,181.18,13.27302387]
[1730225921154,1.2347,181.27,181.18,13.27302387]
[1730225922466,2.7592,181.23,181.18,16.03272387]
[1730225923555,2.7593,181.22,181.18,2.7597]
[1730225924163,4.54,181.23,181.16,13.27302387]
[1730225924464,2.7593,181.22,181.18,2.7598]
[1730225927569,2.7593,181.22,181.19,2.7596]
[1730225927764,5.76437297,181.37,181.21,13.27302387]
[1730225927966,24.88867418,181.32,181.23,13.27302387]
[1730225928167,20.34867418,181.32,181.25,13.27302387]
[1730225928374,20.34867418,181.32,181.28,13.27302387]
[1730225928872,7.2975,181.33,181.28,13.27302387]
[1730225929063,7.2975,181.33,181.29,2.758]
[1730225929266,4.54,181.33,181.28,13.27302387]
[1730225930371,7.2975,181.33,181.3,2.7578]
[1730225931267,2.7578,181.32,181.28,16.03112387]
[1730225931471,4.54,181.33,181.28,16.03112387]
[1730225931874,2.758,181.3,181.26,13.27302387]
[1730225932773,4.54,181.33,181.26,13.27302387]
[1730225932976,4.54,181.33,181.28,13.27302387]
[1730225933475,7.2975,181.33,181.3,2.7578]
[1730225933875,2.7575,181.33,181.28,13.27302387]
[1730225934073,2.7575,181.33,181.3,2.7579]
[1730225934384,2.7575,181.33,181.28,13.27302387]
[1730225934675,2.7578,181.32,181.28,13.27302387]
[1730225934881,30.52301128,181.35,181.28,13.27302387]
[1730225935177,30.52301128,181.35,181.28,16.03122387]
[1730225935472,2.7578,181.32,181.28,16.03122387]
[1730225935868,30.52301128,181.35,181.27,2.7584]
[1730225936072,2.758,181.3,181.27,2.7584]
[1730225936372,30.52301128,181.35,181.29,2.7581]
[1730225936570,30.52301128,181.35,181.26,13.27302387]
[1730225937073,30.52301128,181.35,181.27,2.7583]
[1730225937473,2.7579,181.31,181.27,2.7583]
[1730225937974,2.7579,181.31,181.28,2.7582]
[1730225938580,43.79603515,181.35,181.25,2.7586]
[1730225939170,2.7582,181.29,181.25,2.7586]
[1730225939567,4.52,181.31,181.26,2.7585]
[1730225939767,2.7581,181.3,181.26,2.7585]
[1730225940679,4.52,181.31,181.23,13.27302387]
[1730225940880,4.52,181.31,181.25,2.7587]
[1730225941179,2.7582,181.29,181.25,2.7587]
[1730225941478,4.52,181.31,181.24,2.7588]
[1730225941677,2.7584,181.28,181.23,13.27302387]
[1730225942177,2.758,181.3,181.27,2.7584]
[1730225942571,4.52,181.31,181.26,13.27302387]
[1730225942771,2.7577,181.32,181.29,2.7581]
[1730225942971,2.7577,181.32,181.28,13.27302387]
[1730225943282,7.2775,181.33,181.28,13.27302387]
[1730225943979,7.2775,181.33,181.3,2.7579]
[1730225944382,7.2775,181.33,181.28,13.27302387]
[1730225944676,4.52,181.33,181.28,13.27302387]
[1730225944980,4.52,181.33,181.25,13.27302387]
[1730225945883,17.79302387,181.33,181.23,13.27302387]
[1730225946872,2.7584,181.28,181.25,2.7587]
[1730225947670,2.7584,181.27,181.25,2.7587]
[1730225948075,2.7584,181.27,181.23,13.27302387]
[1730225948275,2.7584,181.27,181.24,2.7588]
[1730225948470,2.7588,181.25,181.2,13.27302387]
[1730225948674,2.7588,181.25,181.22,2.7591]
[1730225950180,2.7386144,181.27,181.2,13.27302387]
[1730225950378,2.7386144,181.27,181.14,2.5364]
[1730225950379,17.79302387,181.28,181.18,13.27302387]